fUSD/lending_fUSD_20250207
["ID","MTS","AMOUNT","RATE_DAILY","PERIOD"]
[352145581,1738961448434,-500.0,0.00016438,2]
[352145583,1738961448444,-500.0,0.00016438,2]
[352145585,1738961448455,-2332.62,0.00016438,2]
[352145587,1738961448466,-543.82295994,0.00016438,2]
[352145589,1738961448477,-500.0,0.00016438,2]
[352145591,1738961448488,-500.0,0.00016438,2]
[352145593,1738961448499,-500.0,0.00016438,2]
[352145595,1738961448510,-500.0,0.00016438,2]
[352145597,1738961448520,-500.0,0.00016438,2]
[352145599,1738961448530,-2485.02,0.00016438,2]
[352145601,1738961448540,-500.0,0.00016438,2]
[352145603,1738961448552,-500.0,0.00016438,2]
[352145605,1738961448564,-500.0,0.00016438,2]
[352145608,1738961448576,-500.0,0.00016438,2]
[352145610,1738961448586,-500.0,0.00016438,2]
[352145612,1738961448597,-500.0,0.00016438,2]
[352145614,1738961448607,-500.0,0.00016438,2]
[352145616,1738961448617,-500.0,0.00016438,2]
[352145617,1738961448627,-500.0,0.00016438,2]
[352145619,1738961448639,-500.0,0.00016438,2]
[352145621,1738961448650,-500.0,0.00016438,2]
[352145624,1738961448661,-500.0,0.00016438,2]
[352145626,1738961448672,-500.0,0.00016438,2]
[352145628,1738961448683,-500.0,0.00016438,2]
[352145630,1738961448693,-500.0,0.00016438,2]
[352145632,1738961448705,-500.0,0.00016438,2]
[352145634,1738961448715,-524.31,0.00016438,2]
[352145636,1738961448725,-1327.51,0.00016438,2]
[352145637,1738961448736,-1877.79,0.00016438,2]
[352145640,1738961448746,-500.0,0.00016438,2]
[352145641,1738961448756,-500.0,0.00016438,2]
[352145643,1738961448766,-500.0,0.00016438,2]
[352145645,1738961448776,-151.0,0.00016438,2]
[352145647,1738961448787,-151.0,0.00016438,2]
[352145650,1738961448798,-1972.71,0.00016438,2]
[352145651,1738961448808,-500.0,0.00016438,2]
[352145653,1738961448819,-751.72,0.00016438,2]
[352145656,1738961448830,-500.0,0.00016438,2]
[352145658,1738961448841,-151.0,0.00016438,2]
[352145660,1738961448852,-500.0,0.00016438,2]
[352145662,1738961448862,-151.0,0.00016438,2]
[352145664,1738961448872,-1554.01,0.00016438,2]
[352145666,1738961448884,-500.0,0.00016438,2]
[352145668,1738961448896,-869.67,0.00016438,2]
[352145670,1738961448906,-500.0,0.00016438,2]
[352145672,1738961448917,-500.0,0.00016438,2]
[352145673,1738961448926,-500.0,0.00016438,2]
[352145674,1738961448941,-500.0,0.00016438,2]
[352145675,1738961448952,-500.0,0.00016438,2]
[352145676,1738961448962,-500.0,0.00016438,2]
[352145677,1738961448973,-500.0,0.00016438,2]
[352145678,1738961448983,-500.0,0.00016438,2]
[352145679,1738961448994,-1474.98,0.00016438,2]
[352145680,1738961449005,-500.0,0.00016438,2]
[352145681,1738961449020,-500.0,0.00016438,2]
[352145682,1738961449035,-500.0,0.00016438,2]
[352145683,1738961449046,-500.0,0.00016438,2]
[352145684,1738961449056,-500.0,0.00016438,2]
[352145685,1738961449067,-500.0,0.00016438,2]
[352145687,1738961449078,-500.0,0.00016438,2]
[352145689,1738961449089,-574.7,0.00016438,2]
[352145691,1738961449099,-500.0,0.00016438,2]
[352145693,1738961449111,-500.0,0.00016438,2]
[352145695,1738961449125,-500.0,0.00016438,2]
[352145697,1738961449136,-500.0,0.00016438,2]
[352145699,1738961449147,-500.0,0.00016438,2]
[352145701,1738961449159,-500.0,0.00016438,2]
[352145703,1738961449170,-500.0,0.00016438,2]
[352145705,1738961449181,-500.0,0.00016438,2]
[352145707,1738961449191,-500.0,0.00016438,2]
[352145710,1738961449204,-500.0,0.00016438,2]
[352145712,1738961449215,-500.0,0.00016438,2]
[352145714,1738961449227,-500.0,0.00016438,2]
[352145716,1738961449247,-784.23,0.00016438,2]
[352145718,1738961449258,-500.0,0.00016438,2]
[352145720,1738961449268,-500.0,0.00016438,2]
[352145722,1738961449279,-500.0,0.00016438,2]
[352145724,1738961449291,-500.0,0.00016438,2]
[352145726,1738961449302,-505.61186232,0.00016438,2]
[352145728,1738961449313,-501.9243905,0.00016438,2]
[352145730,1738961449324,-956.99,0.00016438,2]
[352145732,1738961449335,-500.0,0.00016438,2]
[352145734,1738961449347,-500.0,0.00016438,2]
[352145737,1738961449358,-1553.49,0.00016438,2]
[352145739,1738961449369,-500.0,0.00016438,2]
[352145741,1738961449380,-2305.21,0.00016438,2]
[352145743,1738961449392,-2162.01,0.00016438,2]
[352145745,1738961449404,-500.0,0.00016438,2]
[352145747,1738961449415,-500.0,0.00016438,2]
[352145749,1738961449426,-500.28,0.00016438,2]
[352145751,1738961449436,-500.0,0.00016438,2]
[352145753,1738961449446,-500.0,0.00016438,2]
[352145755,1738961449457,-500.0,0.00016438,2]
[352145757,1738961449468,-500.0,0.00016438,2]
[352145759,1738961449480,-500.0,0.00016438,2]
[352145761,1738961449492,-500.0,0.00016438,2]
[352145763,1738961449503,-500.0,0.00016438,2]
[352145765,1738961449515,-500.0,0.00016438,2]
[352145767,1738961449526,-500.0,0.00016438,2]
[352145770,1738961449538,-1130.27,0.00016438,2]
[352145771,1738961449548,-248.64897294,0.00016438,2]
[352145774,1738961449559,-500.0,0.00016438,2]
[352145776,1738961449569,-500.0,0.00016438,2]
[352145778,1738961449579,-500.0,0.00016438,2]
[352145780,1738961449589,-500.0,0.00016438,2]
[352145782,1738961449599,-151.0,0.00016438,2]
[352145784,1738961449609,-503.92099416,0.00016438,2]
[352145786,1738961449618,-500.0,0.00016438,2]
[352145788,1738961449628,-500.0,0.00016438,2]
[352145790,1738961449638,-500.0,0.00016438,2]
[352145792,1738961449647,-1908.71,0.00016438,2]
[352145794,1738961449657,-502.17590195,0.00016438,2]
[352145796,1738961449667,-151.0,0.00016438,2]
[352145798,1738961449678,-500.0,0.00016438,2]
[352145799,1738961449688,-310.44395947,0.00016438,2]
[352145801,1738961449698,-557.1,0.00016438,2]
[352145803,1738961449708,-500.0,0.00016438,2]
[352145805,1738961449718,-500.0,0.00016438,2]
[352145807,1738961449727,-500.0,0.00016438,2]
[352145809,1738961449737,-1757.07,0.00016438,2]
[352145812,1738961449747,-1803.87,0.00016438,2]
[352145814,1738961449757,-500.0,0.00016438,2]
[352145816,1738961449767,-500.0,0.00016438,2]
[352145818,1738961449776,-500.0,0.00016438,2]
[352145820,1738961449786,-899.61,0.00016438,2]
[352145822,1738961449795,-500.0,0.00016438,2]
[352145824,1738961449818,-500.0,0.00016438,2]
[352145826,1738961449828,-500.0,0.00016438,2]
[352145828,1738961449838,-500.0,0.00016438,2]
[352145830,1738961449848,-633.01,0.00016438,2]
[352145832,1738961449859,-500.0,0.00016438,2]
[352145834,1738961449868,-500.0,0.00016438,2]
[352145836,1738961449879,-635.85,0.00016438,2]
[352145838,1738961449889,-10000.0,0.00016438,2]
[352145840,1738961449901,-500.0,0.00016438,2]
[352145842,1738961449911,-500.0,0.00016438,2]
[352145844,1738961449922,-500.0,0.00016438,2]
[352145846,1738961449931,-500.83026792,0.00016438,2]
[352145848,1738961449941,-500.0,0.00016438,2]
[352145850,1738961449951,-631.85,0.00016438,2]
[352145852,1738961449962,-500.0,0.00016438,2]
[352145854,1738961449972,-500.0,0.00016438,2]
[352145856,1738961449982,-10000.0,0.00016438,2]
[352145858,1738961449991,-500.0,0.00016438,2]
[352145860,1738961450001,-500.0,0.00016438,2]
[352145862,1738961450011,-696.61,0.00016438,2]
[352145864,1738961450020,-500.44557395,0.00016438,2]
[352145866,1738961450030,-582.04,0.00016438,2]
[352145869,1738961450041,-10000.0,0.00016438,2]
[352145871,1738961450051,-151.0,0.00016438,2]
[352145873,1738961450062,-564.65,0.00016438,2]
[352145875,1738961450071,-500.0,0.00016438,2]
[352145877,1738961450081,-500.0,0.00016438,2]
[352145879,1738961450091,-500.0,0.00016438,2]
[352145881,1738961450102,-10000.0,0.00016438,2]
[352145883,1738961450111,-500.0,0.00016438,2]
[352145884,1738961450124,-151.0,0.00016438,2]
[352145886,1738961450133,-500.0,0.00016438,2]
[352145888,1738961450142,-500.0,0.00016438,2]
[352145890,1738961450153,-507.17,0.00016438,2]
[352145892,1738961450163,-10000.0,0.00016438,2]
[352145894,1738961450173,-671.83,0.00016438,2]
[352145896,1738961450183,-501.51935289,0.00016438,2]
[352145898,1738961450195,-500.0,0.00016438,2]
[352145901,1738961450205,-500.0,0.00016438,2]
[352145903,1738961450215,-500.0,0.00016438,2]
[352145905,1738961450224,-500.0,0.00016438,2]
[352145907,1738961450234,-10000.0,0.00016438,2]
[352145909,1738961450244,-500.0,0.00016438,2]
[352145910,1738961450253,-500.0,0.00016438,2]
[352145913,1738961450263,-756.06,0.00016438,2]
[352145915,1738961450273,-738.46,0.00016438,2]
[352145917,1738961450283,-813.48,0.00016438,2]
[352145918,1738961450292,-500.0,0.00016438,2]
[352145921,1738961450302,-500.0,0.00016438,2]
[352145923,1738961450312,-500.0,0.00016438,2]
[352145925,1738961450324,-500.0,0.00016438,2]
[352145927,1738961450333,-660.355421,0.00016438,2]
[352145928,1738961450343,-563.72,0.00016438,2]
[352145930,1738961450353,-500.0,0.00016438,2]
[352145933,1738961450362,-660.355421,0.00016438,2]
[352145935,1738961450372,-500.0,0.00016438,2]
[352145937,1738961450382,-500.0,0.00016438,2]
[352145939,1738961450392,-2275.52,0.00016438,2]
[352145940,1738961450401,-660.355421,0.00016438,2]
[352145943,1738961450411,-473.22252709,0.00016438,2]
[352145945,1738961450421,-660.355421,0.00016438,2]
[352145947,1738961450430,-500.69209217,0.00016438,2]
[352145949,1738961450440,-500.0,0.00016438,2]
[352145951,1738961450449,-500.0,0.00016438,2]
[352145953,1738961450459,-160.448173,0.00016438,2]
[352145955,1738961450468,-1314.26,0.00016438,2]
[352145957,1738961450478,-504.55538647,0.00016438,2]
[352145959,1738961450489,-500.0,0.00016438,2]
[352145961,1738961450498,-160.448173,0.00016438,2]
[352145962,1738961450507,-1466.51,0.00016438,60]
[352145964,1738961450517,-500.0,0.00016438,2]
[352145966,1738961450527,-500.0,0.00016438,2]
[352145968,1738961450536,-500.0,0.00016438,2]
[352145970,1738961450546,-500.0,0.00016438,2]
[352145973,1738961450557,-500.0,0.00016438,2]
[352145975,1738961450567,-500.0,0.00016438,2]
[352145976,1738961450576,-160.448173,0.00016438,2]
[352145979,1738961450585,-500.0,0.00016438,2]
[352145981,1738961450595,-160.448173,0.00016438,2]
[352145983,1738961450604,-500.0,0.00016438,2]
[352145985,1738961450614,-806.7,0.00016438,2]
[352145986,1738961450623,-954.48,0.00016438,2]
[352145988,1738961450632,-500.0,0.00016438,2]
[352145990,1738961450642,-511.07268249,0.00016438,2]
[352145992,1738961450652,-694.46,0.00016438,2]
[352145995,1738961450662,-500.0,0.00016438,2]
[352145996,1738961450671,-500.0,0.00016438,2]
[352145999,1738961450681,-500.0,0.00016438,2]
[352146001,1738961450691,-500.0,0.00016438,2]
[352146003,1738961450701,-500.0,0.00016438,2]
[352146005,1738961450711,-665.49,0.00016438,2]
[352146007,1738961450720,-500.0,0.00016438,2]
[352146009,1738961450730,-1003.53,0.00016438,2]
[352146011,1738961450739,-550.63,0.00016438,2]
[352146013,1738961450748,-431.342835,0.00016438,2]
[352146015,1738961450757,-431.342835,0.00016438,2]
[352146017,1738961450766,-500.0,0.00016438,2]
[352146019,1738961450775,-581.27,0.00016438,2]
[352146021,1738961450786,-500.0,0.00016438,2]
[352146023,1738961450795,-500.0,0.00016438,2]
[352146025,1738961450805,-431.342835,0.00016438,2]
[352146027,1738961450814,-431.342835,0.00016438,2]
[352146029,1738961450823,-500.0,0.00016438,2]
[352146031,1738961450833,-500.0,0.00016438,2]
[352146033,1738961450842,-399.18092317,0.00016438,2]
[352146035,1738961450851,-531.29,0.00016438,2]
[352146037,1738961450861,-500.0,0.00016438,2]
[352146039,1738961450873,-500.0,0.00016438,2]
[352146041,1738961450883,-500.0,0.00016438,2]
[352146044,1738961450893,-501.84125354,0.00016438,2]
[352146046,1738961450903,-500.0,0.00016438,2]
[352146048,1738961450912,-500.0,0.00016438,2]
[352146050,1738961450923,-500.0,0.00016438,2]
[352146051,1738961450934,-500.0,0.00016438,2]
[352146054,1738961450943,-500.0,0.00016438,2]
[352146055,1738961450953,-1858.25,0.00016438,2]
[352146057,1738961450963,-500.0,0.00016438,2]
[352146067,1738961451045,-500.0,0.00016438,2]
[352146069,1738961451055,-500.41250337,0.00016438,2]
[352146071,1738961451065,-500.0,0.00016438,2]
[352146073,1738961451075,-612.68796512,0.00016438,2]
[352146076,1738961451084,-500.0,0.00016438,2]
[352146077,1738961451094,-500.0,0.00016438,2]
[352146080,1738961451104,-1765.62,0.00016438,2]
[352146082,1738961451115,-743.18,0.00016438,2]
[352146083,1738961451124,-500.0,0.00016438,2]
[352146085,1738961451133,-500.0,0.00016438,2]
[352146087,1738961451142,-500.0,0.00016438,2]
[352146090,1738961451153,-500.0,0.00016438,2]
[352146092,1738961451163,-500.0,0.00016438,2]
[352146094,1738961451173,-326.63072428,0.00016438,2]
[352146096,1738961451183,-500.0,0.00016438,2]
[352146098,1738961451196,-500.0,0.00016438,2]
[352146100,1738961451205,-500.0,0.00016438,2]
[352146102,1738961451214,-207.65378399,0.00016438,2]
[352146104,1738961451224,-577.99816298,0.00016438,2]
[352146106,1738961451233,-1723.64,0.00016438,2]
[352146108,1738961451243,-500.0,0.00016438,2]
[352146110,1738961451252,-500.0,0.00016438,2]
[352146112,1738961451262,-500.0,0.00016438,2]
[352146114,1738961451271,-500.0,0.00016438,2]
[352146116,1738961451280,-500.0,0.00016438,2]
[352146118,1738961451289,-500.0,0.00016438,2]
[352146120,1738961451299,-500.0,0.00016438,2]
[352146122,1738961451308,-500.0,0.00016438,2]
[352146124,1738961451317,-252.926132,0.00016438,2]
[352146126,1738961451327,-500.0,0.00016438,2]
[352146128,1738961451336,-705.71,0.00016438,2]
[352146130,1738961451346,-500.0,0.00016438,2]
[352146132,1738961451355,-500.0,0.00016438,2]
[352146134,1738961451364,-500.0,0.00016438,2]
[352146136,1738961451373,-957.25,0.00016438,2]
[352146138,1738961451382,-252.926132,0.00016438,2]
[352146140,1738961451391,-500.0,0.00016438,2]
[352146142,1738961451400,-500.0,0.00016438,2]
[352146144,1738961451410,-727.84,0.00016438,2]
[352146146,1738961451419,-150.06740904,0.00016438,2]
[352146148,1738961451427,-261.38057666,0.00016438,2]
[352146149,1738961451437,-506.30445997,0.00016438,2]
[352146151,1738961451446,-500.0,0.00016438,2]
[352146154,1738961451456,-1166.72,0.00016438,2]
[352146155,1738961451465,-500.0,0.00016438,2]
[352146157,1738961451474,-1618.49441,0.00016438,2]
[352146159,1738961451483,-1618.49441,0.00016438,2]
[352146162,1738961451492,-500.0,0.00016438,2]
[352146164,1738961451502,-1618.49441,0.00016438,2]
[352146165,1738961451511,-1618.49441,0.00016438,2]
[352146167,1738961451520,-500.0,0.00016438,2]
[352146169,1738961451529,-171.77260929,0.00016438,2]
[352146171,1738961451538,-504.80966762,0.00016438,2]
[352146173,1738961451548,-803.3,0.00016438,2]
[352146175,1738961451556,-500.0,0.00016438,2]
[352146177,1738961451565,-500.0,0.00016438,2]
[352146179,1738961451574,-2993.14,0.00016438,2]
[352146181,1738961451584,-507.49310363,0.00016438,2]
[352146183,1738961451593,-500.0,0.00016438,2]
[352146185,1738961451603,-500.0,0.00016438,2]
[352146187,1738961451613,-664.54,0.00016438,2]
[352146189,1738961451624,-723.0,0.00016438,2]
[352146191,1738961451633,-717.98,0.00016438,2]
[352146193,1738961451643,-500.0,0.00016438,2]
[352146195,1738961451652,-500.0,0.00016438,2]
[352146197,1738961451661,-500.0,0.00016438,2]
[352146199,1738961451670,-151.0,0.00016438,2]
[352146201,1738961451680,-500.0,0.00016438,2]
[352146203,1738961451689,-500.0,0.00016438,2]
[352146205,1738961451698,-519.43757939,0.00016438,2]
[352146207,1738961451707,-500.0,0.00016438,2]
[352146208,1738961451716,-246.21944537,0.00016438,2]
[352146209,1738961451726,-500.0,0.00016438,2]
[352146210,1738961451735,-1062.13,0.00016438,2]
[352146211,1738961451744,-2061.83,0.00016438,2]
[352146212,1738961451754,-500.0,0.00016438,2]
[352146213,1738961451764,-1762.27,0.00016438,2]
[352146214,1738961451773,-500.0,0.00016438,2]
[352146215,1738961451782,-501.86246909,0.00016438,2]
[352146216,1738961451792,-500.0,0.00016438,2]
[352146217,1738961451801,-500.0,0.00016438,2]
[352146218,1738961451811,-500.0,0.00016438,2]
[352146219,1738961451821,-500.0,0.00016438,2]
[352146220,1738961451830,-748.58,0.00016438,2]
[352146222,1738961451839,-500.0,0.00016438,2]
[352146224,1738961451848,-500.0,0.00016438,2]
[352146226,1738961451857,-803.5,0.00016438,2]
[352146228,1738961451866,-500.0,0.00016438,2]
[352146229,1738961451874,-580.05,0.00016438,2]
[352146231,1738961451883,-502.45347172,0.00016438,2]
[352146233,1738961451892,-500.0,0.00016438,2]
[352146235,1738961451902,-500.0,0.00016438,2]
[352146237,1738961451912,-500.0,0.00016438,2]
[352146239,1738961451921,-500.0,0.00016438,2]
[352146241,1738961451930,-502.61428939,0.00016438,2]
[352146243,1738961451939,-405.317945,0.00016438,2]
[352146245,1738961451949,-500.0,0.00016438,2]
[352146247,1738961451958,-405.317945,0.00016438,2]
[352146249,1738961451967,-500.0,0.00016438,2]
[352146251,1738961451976,-501.10469126,0.00016438,2]
[352146253,1738961451986,-500.0,0.00016438,2]
[352146255,1738961451995,-500.0,0.00016438,2]
[352146257,1738961452005,-419.48043793,0.00016438,2]
[352146259,1738961452020,-405.317945,0.00016438,2]
[352146261,1738961452030,-405.317945,0.00016438,2]
[352146263,1738961452039,-500.0,0.00016438,2]
[352146265,1738961452048,-500.0,0.00016438,2]
[352146267,1738961452057,-500.0,0.00016438,2]
[352146269,1738961452066,-552.17986396,0.00016438,2]
[352146271,1738961452075,-500.0,0.00016438,2]
[352146273,1738961452085,-1780.69,0.00016438,2]
[352146275,1738961452094,-917.15,0.00016438,2]
[352146277,1738961452104,-500.0,0.00016438,2]
[352146279,1738961452114,-500.0,0.00016438,2]
[352146281,1738961452126,-413.23000067,0.00016438,2]
[352146283,1738961452135,-1064.24,0.00016438,2]
[352146285,1738961452144,-500.0,0.00016438,2]
[352146287,1738961452153,-1775.67,0.00016438,2]
[352146289,1738961452164,-500.0,0.00016438,2]
[352146291,1738961452173,-500.0,0.00016438,2]
[352146293,1738961452183,-500.0,0.00016438,2]
[352146295,1738961452192,-494.24012294,0.00016438,2]
[352146297,1738961452201,-500.0,0.00016438,2]
[352146299,1738961452211,-500.0,0.00016438,2]
[352146301,1738961452220,-500.0,0.00016438,2]
[352146303,1738961452228,-500.0,0.00016438,2]
[352146305,1738961452237,-697.96,0.00016438,2]
[352146307,1738961452246,-500.0,0.00016438,2]
[352146309,1738961452256,-500.0,0.00016438,2]
[352146311,1738961452265,-500.0,0.00016438,2]
[352146313,1738961452275,-500.0,0.00016438,2]
[352146315,1738961452284,-500.0,0.00016438,2]
[352146317,1738961452293,-880.7,0.00016438,2]
[352146319,1738961452313,-500.0,0.00016438,2]
[352146321,1738961452323,-2200.92,0.00016438,2]
[352146323,1738961452332,-500.0,0.00016438,2]
[352146325,1738961452341,-500.0,0.00016438,2]
[352146327,1738961452355,-151.0,0.00016438,2]
[352146329,1738961452364,-500.0,0.00016438,2]
[352146331,1738961452374,-151.0,0.00016438,2]
[352146333,1738961452384,-500.0,0.00016438,2]
[352146335,1738961452397,-614.87,0.00016438,2]
[352146337,1738961452406,-500.0,0.00016438,2]
[352146339,1738961452416,-500.0,0.00016438,2]
[352146341,1738961452426,-500.0,0.00016438,2]
[352146343,1738961452435,-631.78,0.00016438,2]
[352146345,1738961452445,-528.54,0.00016438,2]
[352146347,1738961452454,-500.0,0.00016438,2]
[352146349,1738961452464,-500.0,0.00016438,2]
[352146351,1738961452473,-504.94,0.00016438,2]
[352146353,1738961452482,-500.0,0.00016438,2]
[352146355,1738961452492,-503.51006697,0.00016438,2]
[352146357,1738961452501,-500.0,0.00016438,2]
[352146359,1738961452511,-2080.23,0.00016438,2]
[352146361,1738961452521,-833.54,0.00016438,2]
[352146363,1738961452530,-500.0,0.00016438,2]
[352146365,1738961452539,-500.0,0.00016438,2]
[352146367,1738961452549,-672.65,0.00016438,2]
[352146369,1738961452559,-2016.82,0.00016438,2]
[352146371,1738961452568,-760.51,0.00016438,2]
[352146373,1738961452576,-551.82,0.00016438,2]
[352146375,1738961452586,-639.11,0.00016438,2]
[352146377,1738961452595,-500.0,0.00016438,2]
[352146379,1738961452604,-151.0,0.00016438,2]
[352146381,1738961452612,-151.0,0.00016438,2]
[352146383,1738961452622,-500.0,0.00016438,2]
[352146385,1738961452631,-577.74288053,0.00016438,2]
[352146387,1738961452640,-2262.84,0.00016438,2]
[352146389,1738961452648,-500.0,0.00016438,2]
[352146391,1738961452659,-500.0,0.00016438,2]
[352146393,1738961452668,-363.46228402,0.00016438,2]
[352146395,1738961452678,-904.9,0.00016438,2]
[352146397,1738961452687,-500.0,0.00016438,2]
[352146399,1738961452695,-500.0,0.00016438,2]
[352146401,1738961452704,-327.89862818,0.00016438,2]
[352146402,1738961452713,-501.37087888,0.00016438,2]
[352146405,1738961452723,-151.0,0.00016438,2]
[352146406,1738961452732,-151.0,0.00016438,2]
[352146409,1738961452742,-500.0,0.00016438,2]
[352146411,1738961452750,-966.77,0.00016438,2]
[352146412,1738961452760,-500.0,0.00016438,2]
[352146414,1738961452769,-500.0,0.00016438,2]
[352146416,1738961452778,-500.0,0.00016438,2]
[352146418,1738961452787,-836.42,0.00016438,2]
[352146420,1738961452797,-511.51689646,0.00016438,2]
[352146422,1738961452806,-500.0,0.00016438,2]
[352146424,1738961452816,-500.0,0.00016438,2]
[352146426,1738961452825,-935.03,0.00016438,2]
[352146429,1738961452835,-500.0,0.00016438,2]
[352146430,1738961452844,-296.79319302,0.00016438,2]
[352146432,1738961452853,-777.62,0.00016438,2]
[352146434,1738961452862,-500.0,0.00016438,2]
[352146436,1738961452871,-500.0,0.00016438,2]
[352146438,1738961452881,-500.0,0.00016438,2]
[352146440,1738961452890,-500.0,0.00016438,2]
[352146442,1738961452899,-500.0,0.00016438,2]
[352146444,1738961452908,-500.0,0.00016438,2]
[352146447,1738961452917,-500.0,0.00016438,2]
[352146448,1738961452926,-500.0,0.00016438,2]
[352146450,1738961452935,-500.0,0.00016438,2]
[352146452,1738961452945,-500.0,0.00016438,2]
[352146455,1738961452954,-500.0,0.00016438,2]
[352146457,1738961452963,-500.0,0.00016438,2]
[352146459,1738961452973,-500.0,0.00016438,2]
[352146461,1738961452982,-500.0,0.00016438,2]
[352146462,1738961452991,-500.0,0.00016438,2]
[352146464,1738961453001,-500.0,0.00016438,2]
[352146466,1738961453011,-768.82,0.00016438,2]
[352146468,1738961453020,-717.64,0.00016438,2]
[352146471,1738961453030,-500.0,0.00016438,2]
[352146473,1738961453039,-801.02,0.00016438,2]
[352146475,1738961453049,-608.34,0.00016438,2]
[352146476,1738961453059,-2025.5,0.00016438,2]
[352146478,1738961453068,-517.18456396,0.00016438,2]
[352146480,1738961453078,-500.0,0.00016438,2]
[352146482,1738961453088,-504.83,0.00016438,2]
[352146484,1738961453097,-3137.7514855,0.00016438,2]
[352146487,1738961453107,-500.0,0.00016438,2]
[352146489,1738961453121,-277.98685743,0.00016438,2]
[352146491,1738961453130,-621.35,0.00016438,2]
[352146492,1738961453139,-500.0,0.00016438,2]
[352146493,1738961453150,-160.84126323,0.00016438,2]
[352146494,1738961453160,-648.11,0.00016438,2]
[352146495,1738961453169,-500.0,0.00016438,2]
[352146496,1738961453178,-500.0,0.00016438,2]
[352146497,1738961453189,-500.0,0.00016438,2]
[352146498,1738961453199,-909.05,0.00016438,2]
[352146499,1738961453209,-2261.06,0.00016438,2]
[352146500,1738961453218,-500.0,0.00016438,2]
[352146501,1738961453228,-500.0,0.00016438,2]
[352146502,1738961453238,-500.0,0.00016438,2]
[352146503,1738961453247,-5006.633303,0.00016438,2]
[352146504,1738961453256,-500.0,0.00016438,2]
[352146505,1738961453266,-4993.185906,0.00016438,2]
[352146506,1738961453276,-500.0,0.00016438,2]
[352146507,1738961453285,-500.0,0.00016438,2]
[352146508,1738961453294,-500.0,0.00016438,2]
[352146509,1738961453304,-500.0,0.00016438,2]
[352146510,1738961453313,-500.0,0.00016438,2]
[352146511,1738961453323,-1097.83,0.00016438,2]
[352146512,1738961453333,-672.9,0.00016438,2]
[352146513,1738961453343,-300.0,0.00016438,2]
[352146514,1738961453352,-500.0,0.00016438,2]
[352146515,1738961453361,-303.77583261,0.00016438,2]
[352146516,1738961453371,-4550.42,0.00016438,2]
[352146517,1738961453380,-500.0,0.00016438,2]
[352146518,1738961453390,-500.0,0.00016438,2]
[352146520,1738961453399,-151.0,0.00016438,2]
[352146522,1738961453409,-151.0,0.00016438,2]
[352146523,1738961453418,-2341.4,0.00016438,2]
[352146524,1738961453427,-506.73778722,0.00016438,2]
[352146525,1738961453437,-500.0,0.00016438,2]
[352146526,1738961453446,-500.0,0.00016438,2]
[352146527,1738961453456,-500.0,0.00016438,2]
[352146528,1738961453465,-1531.35,0.00016438,2]
[352146529,1738961453474,-500.0,0.00016438,2]
[352146530,1738961453484,-500.0,0.00016438,2]